fUSD/lending_fUSD_20240906
["ID","MTS","AMOUNT","RATE_DAILY","PERIOD"]
[337298828,1725587469339,-500.0,0.00014598,2]
[337298829,1725587469348,-500.0,0.00014598,2]
[337298830,1725587469357,-500.0,0.00014598,2]
[337298831,1725587469366,-295.05261204,0.00014598,2]
[337298832,1725587469375,-500.0,0.00014598,2]
[337298833,1725587469384,-500.0,0.00014598,2]
[337298834,1725587469394,-500.0,0.00014598,2]
[337298835,1725587469403,-500.0,0.00014598,2]
[337298836,1725587469412,-500.0,0.00014598,2]
[337298837,1725587469421,-500.0,0.00014598,2]
[337298838,1725587469430,-178.64928273,0.00014598,2]
[337298839,1725587469439,-500.0,0.00014598,2]
[337298840,1725587469449,-500.0,0.00014598,2]
[337298841,1725587469458,-500.0,0.00014598,2]
[337298842,1725587469468,-500.0,0.00014598,2]
[337298843,1725587469479,-500.0,0.00014598,2]
[337298844,1725587469491,-500.0,0.00014598,2]
[337298845,1725587469500,-500.0,0.00014598,2]
[337298846,1725587469509,-500.0,0.00014598,2]
[337298847,1725587469518,-953.5,0.00014598,2]
[337298848,1725587469527,-953.5,0.00014598,2]
[337298849,1725587469540,-500.0,0.00014598,2]
[337298850,1725587469552,-500.0,0.00014598,2]
[337298851,1725587469561,-367.56455956,0.00014598,2]
[337298852,1725587469572,-500.0,0.00014598,2]
[337298853,1725587469582,-222.24833462,0.00014598,2]
[337298854,1725587469593,-592.62,0.00014598,2]
[337298855,1725587469603,-592.62,0.00014598,2]
[337298856,1725587469613,-500.0,0.00014598,2]
[337298857,1725587469624,-500.0,0.00014598,2]
[337298858,1725587469633,-498.48252201,0.00014598,2]
[337298859,1725587469643,-579.8,0.00014598,2]
[337298860,1725587469654,-500.0,0.00014598,2]
[337298861,1725587469663,-579.8,0.00014598,2]
[337298862,1725587469674,-500.0,0.00014598,2]
[337298863,1725587469683,-202.12550401,0.00014598,2]
[337298864,1725587469692,-482.22027918,0.00014598,2]
[337298865,1725587469702,-500.0,0.00014598,2]
[337298866,1725587469712,-500.0,0.00014598,2]
[337298867,1725587469722,-500.0,0.00014598,2]
[337298868,1725587469731,-500.0,0.00014598,2]
[337298869,1725587469895,-500.0,0.00014598,2]
[337298870,1725587469905,-500.0,0.00014598,2]
[337298871,1725587469915,-334.41523068,0.00014598,2]
[337298872,1725587469929,-500.0,0.00014598,2]
[337298873,1725587469939,-198.27652247,0.00014598,2]
[337298874,1725587469949,-500.0,0.00014598,2]
[337298875,1725587469958,-500.0,0.00014598,2]
[337298876,1725587469968,-481.75114964,0.00014598,2]
[337298877,1725587469978,-445.72885268,0.00014598,2]
[337298878,1725587469989,-500.0,0.00014598,2]
[337298879,1725587470000,-500.0,0.00014598,2]
[337298880,1725587470010,-500.0,0.00014598,2]
[337298881,1725587470020,-500.0,0.00014598,2]
[337298882,1725587470030,-500.0,0.00014598,2]
[337298883,1725587470041,-571.80330942,0.00014598,2]
[337298884,1725587470051,-500.0,0.00014598,2]
[337298885,1725587470061,-151.77192121,0.00014598,2]
[337298886,1725587470070,-500.0,0.00014598,2]
[337298887,1725587470079,-243.60566859,0.00014598,2]
[337298888,1725587470089,-500.0,0.00014598,2]
[337298889,1725587470098,-363.23800701,0.00014598,2]
[337298890,1725587470110,-500.0,0.00014598,2]
[337298891,1725587470121,-500.0,0.00014598,2]
[337298892,1725587470131,-535.84685371,0.00014598,2]
[337298893,1725587470141,-500.0,0.00014598,2]
[337298894,1725587470150,-500.0,0.00014598,2]
[337298895,1725587470159,-512.86239342,0.00014598,2]
[337298896,1725587470168,-500.0,0.00014598,2]
[337298897,1725587470177,-500.0,0.00014598,2]
[337298898,1725587470187,-500.0,0.00014598,2]
[337298899,1725587470196,-500.0,0.00014598,2]
[337298900,1725587470207,-500.0,0.00014598,2]
[337298901,1725587470216,-500.0,0.00014598,2]
[337298902,1725587470226,-500.0,0.00014598,2]
[337298903,1725587470236,-500.0,0.00014598,2]
[337298904,1725587470247,-605.38618065,0.00014598,2]
[337298905,1725587470256,-500.0,0.00014598,2]
[337298906,1725587470266,-500.0,0.00014598,2]
[337298907,1725587470275,-500.0,0.00014598,2]
[337298908,1725587470285,-500.0,0.00014598,2]
[337298909,1725587470295,-253.6954035,0.00014598,2]
[337298910,1725587470304,-500.0,0.00014598,2]
[337298911,1725587470316,-500.0,0.00014598,2]
[337298912,1725587470326,-500.0,0.00014598,2]
[337298913,1725587470336,-500.0,0.00014598,2]
[337298914,1725587470347,-365.31369052,0.00014598,2]
[337298915,1725587470357,-500.0,0.00014598,2]
[337298916,1725587470367,-500.0,0.00014598,2]
[337298917,1725587470378,-500.0,0.00014598,2]
[337298918,1725587470389,-500.0,0.00014598,2]
[337298919,1725587470398,-500.0,0.00014598,2]
[337298920,1725587470407,-500.0,0.00014598,2]
[337298921,1725587470416,-500.0,0.00014598,2]
[337298922,1725587470426,-500.0,0.00014598,2]
[337298923,1725587470435,-500.0,0.00014598,2]
[337298924,1725587470444,-160.58162726,0.00014598,2]
[337298925,1725587470454,-500.0,0.00014598,2]
[337298926,1725587470463,-500.0,0.00014598,2]
[337298927,1725587470472,-500.0,0.00014598,2]
[337298928,1725587470481,-500.0,0.00014598,2]
[337298929,1725587470490,-500.0,0.00014598,2]
[337298930,1725587470500,-500.0,0.00014598,2]
[337298931,1725587470509,-500.0,0.00014598,2]
[337298932,1725587470518,-500.0,0.00014598,2]
[337298933,1725587470527,-500.0,0.00014598,2]
[337298934,1725587470539,-500.0,0.00014598,2]
[337298935,1725587470551,-500.0,0.00014598,2]
[337298936,1725587470560,-500.0,0.00014598,2]
[337298937,1725587470570,-500.0,0.00014598,2]
[337298938,1725587470579,-500.0,0.00014598,2]
[337298939,1725587470589,-500.0,0.00014598,2]
[337298940,1725587470599,-609.204711,0.00014598,2]
[337298941,1725587470609,-519.53905983,0.00014598,2]
[337298942,1725587470618,-622.02274836,0.00014598,2]
[337298943,1725587470628,-564.29,0.00014598,2]
[337298944,1725587470638,-564.29,0.00014598,2]
[337298945,1725587470647,-500.0,0.00014598,2]
[337298946,1725587470657,-500.0,0.00014598,2]
[337298947,1725587470666,-500.0,0.00014598,2]
[337298948,1725587470676,-500.0,0.00014598,2]
[337298949,1725587470686,-500.0,0.00014598,2]
[337298950,1725587470697,-500.0,0.00014598,2]
[337298951,1725587470707,-501.62942427,0.00014598,2]
[337298952,1725587470717,-500.0,0.00014598,2]
[337298953,1725587470726,-500.0,0.00014598,2]
[337298954,1725587470736,-500.0,0.00014598,2]
[337298955,1725587470747,-500.0,0.00014598,2]
[337298956,1725587470756,-500.0,0.00014598,2]
[337298957,1725587470765,-497.36465355,0.00014598,2]
[337298958,1725587470775,-500.0,0.00014598,2]
[337298959,1725587470784,-500.0,0.00014598,2]
[337298960,1725587470794,-500.0,0.00014598,2]
[337298961,1725587470803,-500.0,0.00014598,2]
[337298962,1725587470813,-500.0,0.00014598,2]
[337298963,1725587470824,-500.0,0.00014598,2]
[337298964,1725587470833,-500.0,0.00014598,2]
[337298965,1725587470843,-500.0,0.00014598,2]
[337298966,1725587470853,-535.39705041,0.00014598,2]
[337298967,1725587470863,-523.95165995,0.00014598,2]
[337298968,1725587470872,-500.0,0.00014598,2]
[337298969,1725587470881,-500.0,0.00014598,2]
[337298970,1725587470891,-426.08166958,0.00014598,2]
[337298971,1725587470900,-500.0,0.00014598,2]
[337298972,1725587470912,-500.0,0.00014598,2]
[337298973,1725587470921,-348.82883299,0.00014598,2]
[337298974,1725587470931,-599.67,0.00014598,2]
[337298975,1725587470940,-525.16107046,0.00014598,2]
[337298976,1725587470950,-599.67,0.00014598,2]
[337298977,1725587470959,-500.0,0.00014598,2]
[337298978,1725587470969,-500.0,0.00014598,2]
[337298979,1725587470978,-500.0,0.00014598,2]
[337298980,1725587470988,-500.0,0.00014598,2]
[337298981,1725587470999,-500.0,0.00014598,2]
[337298982,1725587471009,-500.0,0.00014598,2]
[337298983,1725587471019,-500.0,0.00014598,2]
[337298984,1725587471028,-500.0,0.00014598,2]
[337298985,1725587471038,-501.24976631,0.00014598,2]
[337298986,1725587471047,-503.94942765,0.00014598,2]
[337298987,1725587471056,-500.0,0.00014598,2]
[337298988,1725587471065,-500.0,0.00014598,2]
[337298989,1725587471075,-500.0,0.00014598,2]
[337298990,1725587471084,-500.0,0.00014598,2]
[337298991,1725587471093,-500.0,0.00014598,2]
[337298992,1725587471102,-500.0,0.00014598,2]
[337298993,1725587471111,-500.0,0.00014598,2]
[337298994,1725587471121,-500.0,0.00014598,2]
[337298995,1725587471130,-500.0,0.00014598,2]
[337298996,1725587471140,-500.0,0.00014598,2]
[337298997,1725587471150,-500.0,0.00014598,2]
[337298998,1725587471159,-268.66431422,0.00014598,2]
[337298999,1725587471351,-231.33568578,0.00014598,2]
[337299000,1725587471360,-35.02712022,0.00014598,2]
[337299001,1725587471371,-464.97287978,0.00014598,2]
[337299002,1725587471382,-500.0,0.00014598,2]
[337299003,1725587471391,-500.0,0.00014598,2]
[337299004,1725587471401,-500.0,0.00014598,2]
[337299005,1725587471411,-500.0,0.00014598,2]
[337299006,1725587471420,-500.0,0.00014598,2]
[337299007,1725587471430,-503.48985691,0.00014598,2]
[337299008,1725587471440,-500.0,0.00014598,2]
[337299009,1725587471450,-500.0,0.00014598,2]
[337299010,1725587471460,-500.0,0.00014598,2]
[337299011,1725587471469,-500.0,0.00014598,2]
[337299012,1725587471479,-500.0,0.00014598,2]
[337299013,1725587471488,-278.7564416,0.00014598,2]
[337299014,1725587471499,-500.0,0.00014598,2]
[337299015,1725587471509,-500.0,0.00014598,2]
[337299016,1725587471518,-165.04,0.00014598,2]
[337299017,1725587471527,-683.7,0.00014598,2]
[337299018,1725587471536,-500.0,0.00014598,2]
[337299019,1725587471547,-683.7,0.00014598,2]
[337299020,1725587471560,-500.0,0.00014598,2]
[337299021,1725587471570,-500.0,0.00014598,2]
[337299022,1725587471579,-500.0,0.00014598,2]
[337299023,1725587471590,-500.0,0.00014598,2]
[337299024,1725587471599,-500.7122592,0.00014599,2]
[337299025,1725587471608,-500.60148023,0.00014599,2]
[337299026,1725587471618,-501.48627878,0.00014599,2]
[337299027,1725587471629,-501.18628326,0.00014599,2]
[337299028,1725587471638,-501.12415181,0.00014599,2]
[337299029,1725587471648,-500.96530401,0.00014599,2]
[337299030,1725587471657,-501.03827172,0.00014599,2]
[337299031,1725587471667,-502.25024512,0.00014599,2]
[337299032,1725587471677,-490.95331891,0.00014599,2]
[337299033,1725587471686,-502.74013342,0.00014599,2]
[337299034,1725587471696,-503.8444773,0.00014599,2]
[337299035,1725587471706,-502.38175453,0.00014599,2]
[337299036,1725587471715,-234.9,0.00014599,2]
[337299037,1725587471725,-239.03268909,0.00014599,2]
[337299038,1725587471735,-500.0,0.00014599,2]
[337299039,1725587471745,-500.0,0.00014599,2]
[337299040,1725587471755,-562.32017936,0.00014599,2]
[337299041,1725587471765,-500.0,0.00014599,2]
[337299042,1725587471775,-500.0,0.00014599,2]
[337299043,1725587471784,-500.0,0.00014599,2]
[337299044,1725587471794,-500.0,0.00014599,2]
[337299045,1725587471803,-500.0,0.00014599,2]
[337299046,1725587471812,-500.0,0.00014599,2]
[337299047,1725587471822,-500.0,0.00014599,2]
[337299048,1725587471831,-500.0,0.00014599,2]
[337299049,1725587471841,-500.0,0.00014599,2]
[337299050,1725587471851,-336.64365368,0.00014599,2]
[337299051,1725587471882,-500.0,0.00014563,2]
[337299052,1725587471892,-477.39069926,0.00014574,2]
[337299053,1725587471904,-22.60930074,0.00014574,2]
[337299054,1725587471914,-500.0,0.00014598,2]
[337299055,1725587471923,-163.35634632,0.00014599,2]
[337299056,1725587471933,-241.80435294,0.00014599,2]
[337299057,1725587471944,-253.00000018,0.00014599,2]
[337299058,1725587471955,-5.19564688,0.00014599,2]
[337299059,1725587471964,-500.0,0.00014599,2]
[337299060,1725587471973,-500.0,0.00014599,2]
[337299061,1725587471982,-568.5663999,0.00014599,2]
[337299062,1725587471992,-500.0,0.00014599,2]
[337299063,1725587472002,-500.0,0.00014599,2]
[337299064,1725587472011,-255.3404201,0.00014599,2]
[337299065,1725587472023,-244.6595799,0.00014599,2]
[337299066,1725587472032,-500.0,0.00014599,2]
[337299067,1725587472042,-10.2240201,0.00014599,2]
[337299068,1725587472058,-333.22579888,0.00014574,2]
[337299069,1725587472067,-489.7759799,0.00014599,2]
[337299070,1725587472076,-227.51003531,0.00014599,2]
[337299071,1725587472087,-500.0,0.00014599,2]
[337299072,1725587472098,-500.0,0.00014599,2]
[337299073,1725587472108,-500.0,0.00014599,2]
[337299074,1725587472119,-500.0,0.00014599,2]
[337299075,1725587472128,-500.0,0.00014599,2]
[337299076,1725587472139,-500.0,0.00014599,2]
[337299077,1725587472150,-500.0,0.00014599,2]
[337299078,1725587472201,-500.0,0.00014599,2]
[337299079,1725587472210,-500.0,0.00014599,2]
[337299080,1725587472220,-400.06544827,0.00014599,2]
[337299081,1725587472385,-500.0,0.00014563,2]
[337299082,1725587472394,-500.0,0.00014563,2]
[337299083,1725587472403,-30.42657364,0.00014563,2]
[337299084,1725587472423,-382.68491805,0.00014563,2]
[337299085,1725587472434,-86.88850831,0.00014563,2]
[337299086,1725587472443,-500.0,0.00014564,2]
[337299087,1725587472453,-500.0,0.00014564,2]
[337299088,1725587472462,-500.0,0.00014565,2]
[337299089,1725587472472,-500.0,0.00014567,2]
[337299090,1725587472481,-500.0,0.00014568,2]
[337299091,1725587472490,-500.0,0.00014568,2]
[337299092,1725587472500,-501.30839663,0.00014568,2]
[337299093,1725587472509,-500.0,0.00014574,2]
[337299094,1725587472518,-500.0,0.00014575,2]
[337299095,1725587472527,-457.31225685,0.00014575,2]
[337299096,1725587472536,-500.0,0.00014576,2]
[337299097,1725587472545,-118.69083821,0.00014577,2]
[337299098,1725587472561,-385.49002844,0.00014577,2]
[337299099,1725587472570,-39.71497156,0.00014578,2]
[337299100,1725587472581,-460.28502844,0.00014578,2]
[337299101,1725587472591,-500.0,0.00014587,2]
[337299102,1725587472599,-99.93455173,0.00014599,2]
[337299103,1725587472609,-500.0,0.00014599,2]
[337299104,1725587472617,-500.0,0.00014599,2]
[337299105,1725587472628,-500.0,0.00014599,2]
[337299106,1725587472637,-500.0,0.00014599,2]
[337299107,1725587472646,-626.47895747,0.00014599,2]
[337299108,1725587472655,-533.71267244,0.00014599,2]
[337299109,1725587472665,-500.0,0.00014599,2]
[337299110,1725587472674,-500.0,0.00014599,2]
[337299111,1725587472683,-500.0,0.00014599,2]
[337299112,1725587472692,-500.0,0.00014599,2]
[337299113,1725587472702,-633.55853162,0.00014599,2]
[337299114,1725587472711,-383.16840783,0.00014599,2]
[337299115,1725587472720,-500.0,0.00014599,2]
[337299116,1725587472729,-500.0,0.00014599,2]
[337299117,1725587472738,-500.0,0.00014599,2]
[337299118,1725587472748,-500.0,0.00014599,2]
[337299119,1725587472758,-500.0,0.00014599,2]
[337299120,1725587472767,-500.0,0.00014599,2]
[337299121,1725587472776,-367.85629536,0.00014599,2]
[337299122,1725587472786,-500.0,0.00014599,2]
[337299123,1725587472795,-478.63731458,0.00014599,2]
[337299124,1725587472804,-500.0,0.00014599,2]
[337299125,1725587472813,-293.94036855,0.00014599,2]
[337299126,1725587472823,-500.0,0.00014599,2]
[337299127,1725587472832,-500.0,0.00014599,2]
[337299128,1725587472841,-500.0,0.00014599,2]
[337299129,1725587472851,-500.0,0.00014599,2]
[337299130,1725587472861,-500.0,0.00014599,2]
[337299131,1725587472871,-500.0,0.00014599,2]
[337299132,1725587472880,-500.0,0.00014599,2]
[337299133,1725587472890,-500.0,0.00014599,2]
[337299134,1725587472900,-500.0,0.00014599,2]
[337299135,1725587472910,-603.28,0.00014599,2]
[337299136,1725587472921,-500.0,0.00014599,2]
[337299137,1725587472931,-500.0,0.00014599,2]
[337299138,1725587472940,-584.01730091,0.00014599,2]
[337299139,1725587472950,-500.0,0.00014599,2]
[337299140,1725587472959,-500.0,0.00014599,2]
[337299141,1725587472969,-500.0,0.00014599,2]
[337299142,1725587472978,-343.08228924,0.00014599,2]
[337299143,1725587472988,-500.0,0.00014599,2]
[337299144,1725587472998,-500.0,0.00014599,2]
[337299145,1725587473007,-500.0,0.00014599,2]
[337299146,1725587473016,-500.0,0.00014599,2]
[337299147,1725587473025,-500.0,0.00014599,2]
[337299148,1725587473034,-500.0,0.00014599,2]
[337299149,1725587473043,-500.0,0.00014599,2]
[337299150,1725587473052,-500.0,0.00014599,2]
[337299151,1725587473062,-500.0,0.00014599,2]
[337299152,1725587473070,-500.0,0.00014599,2]
[337299153,1725587473079,-500.0,0.00014599,2]
[337299154,1725587473088,-500.0,0.00014599,2]
[337299155,1725587473097,-500.0,0.00014599,2]
[337299156,1725587473106,-500.0,0.00014599,2]
[337299157,1725587473115,-500.0,0.00014599,2]
[337299158,1725587473124,-500.0,0.00014599,2]
[337299159,1725587473133,-420.07363672,0.00014599,2]
[337299160,1725587473142,-500.0,0.00014599,2]
[337299161,1725587473151,-500.0,0.00014599,2]
[337299162,1725587473160,-432.50685262,0.00014599,2]
[337299163,1725587473170,-500.0,0.00014599,2]
[337299164,1725587473179,-500.0,0.00014599,2]
[337299165,1725587473188,-500.0,0.00014599,2]
[337299166,1725587473197,-500.0,0.00014599,2]
[337299167,1725587473207,-376.57876465,0.00014599,2]
[337299168,1725587473216,-202.22008878,0.00014599,2]
[337299169,1725587473225,-500.0,0.00014599,2]
[337299170,1725587473234,-500.0,0.00014599,2]
[337299171,1725587473244,-500.0,0.00014599,2]
[337299172,1725587473254,-500.0,0.00014599,2]
[337299173,1725587473263,-500.0,0.00014599,2]
[337299174,1725587473272,-500.0,0.00014599,2]
[337299175,1725587473282,-500.0,0.00014599,2]
[337299176,1725587473292,-229.0370604,0.00014599,2]
[337299177,1725587473308,-270.9629396,0.00014599,2]
[337299178,1725587473317,-266.40127954,0.00014599,2]
[337299179,1725587473332,-287.48255445,0.00014599,2]
[337299180,1725587473342,-500.0,0.00014599,2]
[337299181,1725587473354,-4.93144555,0.00014599,2]
[337299182,1725587805048,155.7,0.00010959,2]
[337299183,1725587954757,155.14,0.00011653,2]
[337299185,1725588172508,750.0,0.00011,2]
[337299186,1725588173640,800.0,0.00013,2]
[337299191,1725588484493,155.14,0.00011643,2]
[337299195,1725588508836,150.0,0.00025,60]
[337299196,1725588510099,150.0,0.00025,60]
[337299197,1725588510857,150.0,0.00025,60]
[337299198,1725588512507,150.0,0.00025,60]
[337299199,1725588515507,150.0,0.00025,61]
[337299200,1725588516337,150.0,0.00025,61]
[337299201,1725588517020,150.0,0.00025,61]
[337299206,1725588540148,150.0,0.00027,120]
[337299207,1725588540954,150.0,0.00027,120]
[337299208,1725588541702,150.0,0.00027,120]
[337299209,1725588542017,1185.0,0.00027,120]
[337299210,1725588542413,150.0,0.00027,120]
[337299211,1725588543142,150.0,0.00027,120]
[337299212,1725588543908,150.0,0.00027,120]
[337299213,1725588545008,150.0,0.00027,120]
[337299216,1725588639802,-587.01,0.00013557,2]
[337299217,1725588639811,-250.0,0.00013559,2]
[337299218,1725588639820,-314.74,0.00013561,2]
[337299219,1725588639829,-412.99,0.00013582,2]
[337299220,1725588639838,-186.4594128,0.00013619,2]
[337299221,1725588639968,-26.6805872,0.00013619,2]
[337299222,1725588639978,-692.3600663,0.00014462,2]
[337299223,1725588639989,-151.4021926,0.00014493,2]
[337299224,1725588639998,-56582.0726,0.00014499,2]
[337299225,1725588640008,-692.3600663,0.00014511,2]
[337299226,1725588640017,-153.81,0.00014552,2]
[337299227,1725588640027,-65588.0269762,0.00014553,2]
[337299228,1725588640036,-5465.66891468,0.00014554,2]
[337299229,1725588640046,-16397.006744,0.00014555,2]
[337299230,1725588640055,-500.0,0.00014557,2]
[337299231,1725588640064,-545.53413321,0.00014557,2]
[337299232,1725588640073,-1317.98,0.00014557,2]
[337299233,1725588640083,-532.7,0.00014557,2]
[337299234,1725588640092,-500.0,0.00014557,2]
[337299235,1725588640102,-500.0,0.00014557,2]
[337299236,1725588640111,-500.0,0.00014557,2]
[337299237,1725588640120,-500.0,0.00014557,2]
[337299238,1725588640130,-1073.39,0.00014557,2]
[337299239,1725588640139,-352.80484228,0.00014557,2]
[337299240,1725588640149,-16397.006744,0.00014557,2]
[337299241,1725588640158,-76519.3648055,0.00014558,2]
[337299242,1725588640167,-19793.8143352,0.00014558,2]
[337299243,1725588640178,-692.3600663,0.00014559,2]
[337299244,1725588640188,-500.0,0.00014562,2]
[337299245,1725588640198,-512.27173548,0.00014562,2]
[337299246,1725588640207,-500.0,0.00014562,2]
[337299247,1725588640217,-505.59771431,0.00014562,2]
[337299248,1725588640226,-500.0,0.00014562,2]
[337299249,1725588640235,-500.0,0.00014562,2]
[337299250,1725588640245,-500.0,0.00014562,2]
[337299251,1725588640255,-500.0,0.00014562,2]
[337299252,1725588640264,-500.0,0.00014562,2]
[337299253,1725588640273,-500.0,0.00014562,2]
[337299254,1725588640283,-500.0,0.00014562,2]
[337299255,1725588640293,-500.0,0.00014562,2]
[337299256,1725588640302,-500.0,0.00014562,2]
[337299257,1725588640312,-500.0,0.00014562,2]
[337299258,1725588640322,-500.0,0.00014562,2]
[337299259,1725588640332,-500.0,0.00014562,2]
[337299260,1725588640341,-500.0,0.00014562,2]
[337299261,1725588640351,-500.0,0.00014562,2]
[337299262,1725588640360,-500.0,0.00014562,2]
[337299263,1725588640369,-500.0,0.00014562,2]
[337299264,1725588640378,-245.06655329,0.00014562,2]
[337299265,1725588640388,-500.0,0.00014562,2]
[337299266,1725588640397,-500.0,0.00014562,2]
[337299267,1725588640406,-500.0,0.00014562,2]
[337299268,1725588640415,-500.0,0.00014562,2]
[337299269,1725588640426,-500.0,0.00014562,2]
[337299270,1725588640435,-600.01,0.00014562,2]
[337299271,1725588640445,-500.0,0.00014562,2]
[337299272,1725588640455,-500.0,0.00014562,2]
[337299273,1725588640464,-500.0,0.00014562,2]
[337299274,1725588640474,-617.28299711,0.00014562,2]
[337299275,1725588640483,-500.0,0.00014562,2]
[337299276,1725588640493,-500.0,0.00014562,2]
[337299277,1725588640503,-500.0,0.00014562,2]
[337299278,1725588640512,-500.0,0.00014562,2]
[337299279,1725588640521,-500.0,0.00014562,2]
[337299280,1725588640531,-500.0,0.00014562,2]
[337299281,1725588640540,-500.0,0.00014562,2]
[337299282,1725588640550,-500.0,0.00014562,2]
[337299283,1725588640560,-500.0,0.00014562,2]
[337299284,1725588640569,-500.0,0.00014562,2]
[337299285,1725588640579,-429.69386642,0.00014562,2]
[337299286,1725588640589,-500.0,0.00014562,2]
[337299287,1725588640598,-500.0,0.00014562,2]
[337299288,1725588640608,-500.0,0.00014562,2]
[337299289,1725588640617,-500.0,0.00014562,2]
[337299290,1725588640626,-500.0,0.00014562,2]
[337299291,1725588640636,-500.0,0.00014562,2]
[337299292,1725588640645,-500.0,0.00014562,2]
[337299293,1725588640654,-500.0,0.00014562,2]
[337299294,1725588640664,-500.0,0.00014562,2]
[337299295,1725588640676,-500.0,0.00014562,2]
[337299296,1725588640692,-500.0,0.00014562,2]
[337299297,1725588640701,-512.8,0.00014562,2]
[337299298,1725588640711,-500.0,0.00014562,2]
[337299299,1725588640720,-500.0,0.00014562,2]
[337299300,1725588640730,-500.0,0.00014562,2]
[337299301,1725588640739,-500.0,0.00014562,2]
[337299302,1725588640748,-530.63,0.00014562,2]
[337299303,1725588640758,-500.0,0.00014562,2]
[337299304,1725588640767,-500.0,0.00014562,2]
[337299305,1725588640776,-500.0,0.00014562,2]
[337299307,1725588640786,-589.08,0.00014562,2]
[337299308,1725588640795,-500.0,0.00014562,2]
[337299310,1725588640804,-500.0,0.00014562,2]
[337299312,1725588640814,-500.0,0.00014562,2]
[337299313,1725588640823,-500.0,0.00014562,2]
[337299315,1725588640832,-500.0,0.00014562,2]
[337299317,1725588640842,-500.0,0.00014562,2]
[337299319,1725588640851,-500.0,0.00014562,2]
[337299321,1725588640860,-500.0,0.00014562,2]
[337299323,1725588640870,-500.0,0.00014562,2]
[337299325,1725588640880,-519.3,0.00014562,2]
[337299327,1725588640890,-500.0,0.00014562,2]
[337299329,1725588640900,-500.0,0.00014562,2]
[337299331,1725588640910,-500.0,0.00014562,2]
[337299333,1725588640923,-500.0,0.00014562,2]
[337299335,1725588640933,-500.0,0.00014562,2]
[337299337,1725588640942,-500.0,0.00014562,2]
[337299339,1725588640952,-500.0,0.00014562,2]
[337299341,1725588640963,-500.0,0.00014562,2]
[337299343,1725588640972,-500.0,0.00014562,2]
[337299345,1725588640981,-500.0,0.00014562,2]
[337299347,1725588640992,-500.0,0.00014562,2]
[337299349,1725588641001,-500.0,0.00014562,2]
[337299351,1725588641010,-500.0,0.00014562,2]
[337299353,1725588641020,-500.0,0.00014562,2]
[337299355,1725588641029,-180.12,0.00014562,2]
[337299357,1725588641039,-500.0,0.00014562,2]
[337299359,1725588641050,-500.0,0.00014562,2]
[337299361,1725588641059,-500.0,0.00014562,2]
[337299363,1725588641068,-500.0,0.00014562,2]
[337299365,1725588641078,-500.0,0.00014562,2]
[337299366,1725588641088,-500.0,0.00014562,2]
[337299368,1725588641098,-500.0,0.00014562,2]
[337299370,1725588641108,-500.0,0.00014562,2]
[337299372,1725588641117,-588.94,0.00014562,2]
[337299374,1725588641127,-500.0,0.00014562,2]